bitfinex/quotes_SOLUSD_20240902
["timestamp","ask_amount","ask_price","bid_price","bid_amount"]
[1725291364732,7.5178,133.02,132.98,7.5198]
[1725291364938,7.5178,133.02,132.98,57.5198]
[1725291365328,7.5178,133.02,132.99,7.5193]
[1725291367024,7.5178,133.02,132.98,7.5197]
[1725291368145,7.5178,133.02,132.99,7.5192]
[1725291368758,7.5172,133.03,132.99,7.5192]
[1725291368929,15.8778,133.07,133.02,50.0]
[1725291369126,7.5145,133.08,133.03,20.29577438]
[1725291369349,7.5145,133.08,133.04,7.5161]
[1725291369528,7.5139,133.09,133.04,7.5161]
[1725291369737,7.5139,133.09,133.05,7.5159]
[1725291370754,56.89836019,133.1,133.03,18.7927]
[1725291370936,7.5154,133.06,133.03,18.7927]
[1725291371452,7.5179,133.02,132.98,57.5195]
[1725291371652,38.11536019,133.04,132.99,7.5193]
[1725291371653,7.5172,133.03,132.99,7.5193]
[1725291373552,7.5172,133.03,132.98,50.0]
[1725291373553,38.11536019,133.04,132.97,16.0367]
[1725291373732,0.25098,133.03,132.97,16.0367]
[1725291373934,7.5184,133.01,132.97,23.5568]
[1725291375153,7.5177,133.02,132.98,7.5199]
[1725291375470,7.5167,133.04,133.0,7.5186]
[1725291375837,7.5161,133.05,133.01,7.5181]
[1725291378331,7.5161,133.05,133.01,57.5181]
[1725291379149,7.5161,133.05,133.01,7.5181]
[1725291382462,7.5161,133.05,133.01,57.5181]
[1725291383455,7.5133,133.1,133.06,7.5152]
[1725291383659,7.5133,133.1,133.03,50.0]
[1725291383660,16.4393,133.12,133.05,50.0]
[1725291383871,7.5117,133.13,133.09,7.5136]
[1725291384341,7.5112,133.14,133.09,57.5136]
[1725291385364,7.5114,133.13,133.09,7.5136]
[1725291385568,7.5114,133.13,133.11,173.0]
[1725291386580,59.94656019,133.19,133.13,7.5113]
[1725291386866,7.5088,133.18,133.14,7.5107]
[1725291387067,45.62346019,133.19,133.14,7.5107]
[1725291387240,7.5081,133.19,133.14,7.5107]
[1725291389550,7.5081,133.19,133.15,180.5102]
[1725291389961,21.8312,133.22,133.16,7.5097]
[1725291390151,7.5065,133.22,133.17,7.5091]
[1725291390346,7.5065,133.22,133.18,7.5085]
[1725291391570,7.63129,133.23,133.18,7.5085]
[1725291391771,0.12549,133.22,133.18,7.5085]
[1725291392950,0.8612284,133.24,133.21,173.0]
[1725291393151,0.8612284,133.24,133.23,7.5058]
[1725291393762,0.8612284,133.24,133.23,57.5058]
[1725291395478,0.8612284,133.24,133.23,7.5058]
[1725291395649,0.8612284,133.24,133.22,15.3809]
[1725291396465,0.8612284,133.24,133.23,230.5058]
[1725291397265,0.8612284,133.24,133.23,295.5058]
[1725291398767,0.8612284,133.24,133.23,295.63129]
[1725291398954,18.7464,133.36,133.23,295.63129]
[1725291398955,7.4992,133.35,133.3,7.5016]
[1725291399185,54.09936019,133.36,133.31,7.5011]
[1725291399480,7.4995,133.35,133.3,7.5018]
[1725291399859,38.11536019,133.34,133.27,7.5031]
[1725291400170,38.11536019,133.34,133.26,68.7598]
[1725291400350,38.11536019,133.34,133.3,7.5017]
[1725291400671,45.61516019,133.34,133.29,7.5023]
[1725291400872,7.4998,133.34,133.3,7.5017]
[1725291401172,7.4998,133.34,133.31,1.50008769]
[1725291401409,7.4998,133.34,133.3,7.5017]
[1725291401560,54.09936019,133.36,133.3,18.7541]
[1725291401758,7.3535284,133.37,133.33,7.5]
[1725291401759,8.3592284,133.37,133.33,7.5]
[1725291402153,8.3592284,133.37,133.34,173.0]
[1725291402572,0.8612284,133.37,133.35,1.49965775]
[1725291402777,0.8612284,133.37,133.34,1.49961839]
[1725291402966,8.3591284,133.37,133.33,7.5]
[1725291403261,7.4985,133.36,133.32,26.2518]
[1725291403748,8.3592284,133.37,133.32,26.2518]
[1725291403953,7.4985,133.36,133.31,57.5012]
[1725291404149,0.8612284,133.37,133.32,1.49981694]
[1725291404381,0.8612284,133.37,133.33,1.49965063]
[1725291404566,8.3592284,133.37,133.33,7.5001]
[1725291405656,8.3592284,133.37,133.34,173.0]
[1725291406862,38.24085019,133.36,133.34,173.0]
[1725291407063,38.24085019,133.36,133.31,18.7526]
[1725291407459,7.5006,133.33,133.28,41.404]
[1725291407778,7.4998,133.34,133.29,50.0]
[1725291408985,7.4996,133.34,133.29,7.5023]
[1725291409781,7.4996,133.34,133.3,7.5018]
[1725291410083,7.62459,133.35,133.3,230.5018]
[1725291410291,7.62459,133.35,133.31,7.5012]
[1725291410667,45.73945019,133.36,133.32,1.50000689]
[1725291410861,8.4847184,133.37,133.32,1.50000689]
[1725291411074,7.4997,133.34,133.3,26.256]
[1725291412164,7.5001,133.33,133.28,50.0]
[1725291412369,7.5001,133.33,133.28,57.5025]
[1725291412575,7.5007,133.32,133.28,57.5025]
[1725291413091,0.12549,133.34,133.28,50.0]
[1725291413269,7.5008,133.32,133.28,57.5026]
[1725291413592,7.5008,133.32,133.3,173.0]
[1725291413967,45.61556019,133.33,133.3,173.0]
[1725291414368,7.5002,133.33,133.3,173.0]
[1725291414577,7.4996,133.34,133.3,180.5017]
[1725291414778,7.4996,133.34,133.3,57.5017]
[1725291415692,7.4992,133.35,133.31,7.5012]
[1725291416369,7.4996,133.34,133.3,57.5017]
[1725291416590,7.4996,133.34,133.3,7.5017]
[1725291416968,7.5005,133.33,133.29,18.7556]
[1725291417190,7.4997,133.34,133.3,50.0]
[1725291417884,7.4997,133.34,133.31,173.0]
[1725291418278,7.4992,133.35,133.31,180.5012]
[1725291419789,7.4992,133.35,133.31,7.5012]
[1725291419985,7.4992,133.35,133.29,18.7556]
[1725291419986,7.4996,133.34,133.3,7.5017]
[1725291420867,7.4996,133.34,133.31,1.50012317]
[1725291421071,38.11536019,133.35,133.3,50.0]
[1725291421277,45.61476019,133.35,133.31,7.5009]
[1725291421566,7.4994,133.35,133.31,7.5009]
[1725291422402,0.8612284,133.37,133.32,51.49982906]
[1725291422583,0.8612284,133.37,133.36,7.4985]
[1725291422775,0.8612284,133.37,133.36,180.4985]
[1725291422969,0.8612284,133.37,133.36,230.4985]
[1725291424003,0.8612284,133.37,133.36,180.4985]
[1725291424384,0.8612284,133.37,133.36,230.4985]
[1725291426275,0.8612284,133.37,133.36,180.4985]
[1725291426471,0.8612284,133.37,133.36,230.4985]
[1725291427484,0.8612284,133.37,133.36,180.4985]
[1725291427702,0.8612284,133.37,133.36,230.4985]
[1725291429784,0.8612284,133.37,133.36,223.0]
[1725291429994,0.8612284,133.37,133.36,230.4985]
[1725291430707,37.4451,133.53,133.36,230.4985]
[1725291430708,0.8612284,133.5,133.45,50.0]
[1725291430892,0.8612284,133.5,133.46,8.99102966]
[1725291431090,0.8612284,133.5,133.45,68.7332]
[1725291431091,0.8612284,133.5,133.47,57.492]
[1725291431292,0.8612284,133.5,133.49,7.4911]
[1725291431497,0.8612284,133.5,133.48,7.4916]
[1725291431700,0.8612284,133.5,133.47,76.2217]
[1725291431898,0.8612284,133.5,133.44,38.11536019]
[1725291431899,8.3518284,133.5,133.45,50.0]
[1725291432098,8.3518284,133.5,133.45,57.4932]
[1725291432405,8.3518284,133.5,133.46,1.49833329]
[1725291432601,0.8612284,133.5,133.47,50.0]
[1725291433107,0.8612284,133.5,133.49,57.4911]
[1725291433901,0.8612284,133.5,133.49,275.4911]
[1725291434300,0.8612284,133.5,133.49,57.4911]
[1725291434915,0.8612284,133.5,133.49,50.0]
[1725291436406,0.8612284,133.5,133.49,57.4911]
[1725291437086,0.8612284,133.5,133.49,50.0]
[1725291437281,0.8612284,133.5,133.49,223.0]
[1725291437717,0.8612284,133.5,133.49,230.4911]
[1725291438207,0.8612284,133.5,133.49,275.4911]
[1725291438403,0.8612284,133.5,133.49,275.61659]
[1725291439299,0.8612284,133.5,133.49,275.74208]
[1725291439504,0.8612284,133.5,133.49,275.86757]
[1725291439810,0.8612284,133.5,133.49,290.94589]
[1725291441609,0.8612284,133.5,133.49,291.07138]
[1725291441800,0.8612284,133.5,133.49,311.32236]
[1725291443291,0.8612284,133.5,133.49,310.8204]
[1725291443498,0.8612284,133.5,133.49,250.4911]
[1725291443710,0.8612284,133.5,133.49,250.61659]
[1725291444294,0.8612284,133.5,133.49,250.4911]
[1725291444796,0.8612284,133.5,133.49,275.4911]
[1725291446115,0.8612284,133.5,133.49,173.0]
[1725291446436,0.8612284,133.5,133.46,50.0]
[1725291446786,8.3519284,133.5,133.46,57.4927]
[1725291446986,0.8612284,133.5,133.47,7.4923]
[1725291447210,0.8612284,133.5,133.46,57.4926]
[1725291447211,8.3519284,133.5,133.46,57.4926]
[1725291447418,0.8612284,133.5,133.44,68.7341]
[1725291447793,7.4918,133.48,133.45,1.49832205]
[1725291448021,7.4918,133.48,133.44,76.2277]
[1725291448421,7.4913,133.49,133.45,7.4933]
[1725291448714,8.3519284,133.5,133.46,50.0]
[1725291449187,7.4914,133.49,133.47,173.0]
[1725291449590,7.4917,133.48,133.47,173.0]
[1725291449795,15.49399,133.47,133.39,50.0]
[1725291450010,15.49399,133.47,133.43,50.0]
[1725291450011,38.11536019,133.46,133.43,50.0]
[1725291450216,7.4917,133.48,133.44,1.49849684]
[1725291450519,38.97658859,133.5,133.45,57.4934]
[1725291450520,46.46728859,133.5,133.45,57.4934]
[1725291450718,8.3519284,133.5,133.47,50.0]
[1725291451020,8.3519284,133.5,133.45,57.4934]
[1725291451198,38.97658859,133.5,133.44,26.2283]
[1725291451393,38.97658859,133.5,133.44,18.7345]
[1725291451611,7.493,133.46,133.41,68.7385]
[1725291451810,6.3548,133.46,133.39,57.4964]
[1725291452014,44.47016019,133.46,133.38,18.7426]
[1725291452199,45.60946019,133.44,133.4,50.0]
[1725291452404,7.4948,133.43,133.4,50.0]
[1725291452807,63.20306019,133.46,133.4,50.0]
[1725291452808,7.4941,133.44,133.41,173.0]
[1725291453211,13.8478,133.46,133.41,180.4954]
[1725291453398,13.8478,133.46,133.41,7.4954]
[1725291453609,7.4935,133.45,133.41,7.4954]
[1725291453811,7.4935,133.45,133.42,1.49873621]
[1725291454218,7.4935,133.45,133.41,7.4954]
[1725291454421,7.4958,133.41,133.38,50.0]
[1725291454604,38.24085019,133.44,133.38,50.0]
[1725291454803,7.4952,133.42,133.38,57.4973]
[1725291455211,38.24085019,133.44,133.38,50.0]
[1725291455407,7.495,133.43,133.38,57.4972]
[1725291455621,38.24085019,133.44,133.38,50.0]
[1725291456124,7.4952,133.42,133.38,57.4973]
[1725291456432,7.4952,133.42,133.41,173.0]
[1725291456808,7.4947,133.43,133.41,173.0]
[1725291457018,7.4941,133.44,133.4,50.0]
[1725291457327,7.4941,133.44,133.4,57.4962]
[1725291458329,7.4941,133.44,133.4,50.0]
[1725291458637,0.12549,133.45,133.4,50.0]
[1725291458845,0.12549,133.45,133.4,51.49887346]
[1725291459226,0.12549,133.45,133.4,50.0]
[1725291459847,7.4947,133.43,133.4,50.0]
[1725291460147,7.4941,133.44,133.42,173.0]
[1725291460739,7.4945,133.43,133.42,173.0]
[1725291461242,7.4942,133.44,133.42,173.0]
[1725291461452,7.4942,133.44,133.4,57.4961]
[1725291461642,7.4936,133.45,133.41,1.49880365]
[1725291461838,7.4944,133.44,133.4,50.0]
[1725291462040,6.3548,133.46,133.42,50.0]
[1725291462342,7.4924,133.47,133.43,7.4944]
[1725291464433,7.4924,133.47,133.46,173.0]
[1725291464947,7.4919,133.48,133.46,173.0]
[1725291465241,7.4919,133.48,133.44,7.4939]
[1725291465448,38.24085019,133.49,133.42,50.0]
[1725291465650,0.25098,133.48,133.4,68.7394]
[1725291465839,7.4935,133.45,133.41,7.4954]
[1725291466019,7.4931,133.46,133.41,7.4954]
[1725291467446,7.4936,133.45,133.41,7.4954]
[1725291467943,7.493,133.46,133.42,7.495]
[1725291468125,7.493,133.46,133.45,173.0]
[1725291471150,7.61849,133.46,133.45,173.0]
[1725291471522,7.493,133.46,133.45,173.0]
[1725291472458,7.3392084,133.5,133.45,173.0]
[1725291472459,7.4915,133.49,133.45,230.493]
[1725291472633,7.4915,133.49,133.45,57.493]
[1725291473432,7.0882284,133.5,133.45,68.7325]
[1725291473433,0.8612284,133.5,133.45,68.7325]
[1725291473975,38.97658859,133.5,133.45,76.2255]
[1725291474179,7.4917,133.49,133.45,68.7325]
[1725291474456,7.4918,133.48,133.45,68.7325]
[1725291475038,7.4913,133.49,133.45,68.7325]
[1725291475563,7.492,133.48,133.45,68.7325]
[1725291475936,38.11536019,133.48,133.42,76.2322]
[1725291476269,0.12549,133.47,133.42,76.2322]
[1725291476555,0.12549,133.47,133.42,76.2323]
[1725291476556,7.493,133.46,133.42,76.2323]
[1725291477360,7.4925,133.47,133.43,7.4945]
[1725291478254,7.4928,133.46,133.42,76.2322]
[1725291478650,7.4928,133.46,133.44,173.0]
[1725291479738,7.4923,133.47,133.43,7.4941]
[1725291481237,38.97658859,133.5,133.44,68.7349]
[1725291481441,38.97658859,133.5,133.45,7.4932]
[1725291481756,38.97658859,133.5,133.44,68.7349]
[1725291481757,7.4917,133.48,133.44,76.2287]
[1725291482374,7.4915,133.49,133.45,7.4932]
[1725291482745,46.46748859,133.5,133.47,173.0]
[1725291482945,38.97658859,133.5,133.47,173.0]
[1725291483467,7.4912,133.49,133.47,173.0]
[1725291483843,8.3520284,133.5,133.47,173.0]
[1725291484374,8.3520284,133.5,133.46,7.4928]
[1725291484665,8.3520284,133.5,133.46,26.2248]
[1725291485652,8.3519284,133.5,133.46,26.2245]
[1725291486365,7.4915,133.49,133.46,7.4927]
[1725291487245,7.4915,133.49,133.45,50.0]
[1725291487246,7.4919,133.48,133.45,50.0]
[1725291487468,7.4919,133.48,133.45,173.0]
[1725291487670,7.4914,133.49,133.45,230.4933]
[1725291487972,7.4914,133.49,133.45,180.4933]
[1725291488449,0.8612284,133.5,133.47,57.4919]
[1725291488644,0.8612284,133.5,133.48,1.49810058]
[1725291489067,0.8612284,133.5,133.47,57.4919]
[1725291491255,0.8612284,133.5,133.48,7.4916]
[1725291491871,0.8612284,133.5,133.48,180.4916]
[1725291492168,0.8612284,133.5,133.47,57.492]
[1725291494370,0.8612284,133.5,133.47,50.0]
[1725291494549,38.97658859,133.5,133.43,68.7352]
[1725291494754,38.11536019,133.48,133.43,50.0]
[1725291495066,45.60726019,133.48,133.44,7.4939]
[1725291495247,45.60726019,133.48,133.43,57.4943]
[1725291495449,7.4925,133.47,133.43,57.4943]
[1725291495657,7.4925,133.47,133.43,57.4944]
[1725291498454,7.4925,133.47,133.41,188.145]
[1725291498455,56.84496019,133.48,133.41,245.6405]
[1725291498673,56.84496019,133.48,133.41,50.0]
[1725291498863,38.11536019,133.46,133.39,76.2378]
[1725291499252,56.84816019,133.46,133.39,50.0]
[1725291499450,38.11536019,133.44,133.39,50.0]
[1725291500063,7.4956,133.42,133.39,50.0]
[1725291501255,7.4955,133.42,133.39,50.0]
[1725291501970,7.4965,133.4,133.36,76.2432]
[1725291502473,7.4968,133.39,133.36,18.7451]
[1725291502676,7.4968,133.39,133.35,7.4986]
[1725291503460,38.11536019,133.4,133.34,57.4994]
[1725291503672,7.4974,133.38,133.34,57.4994]
[1725291503870,7.4974,133.38,133.32,37.5017]
[1725291503871,7.4996,133.34,133.32,50.0]
[1725291504062,38.11536019,133.38,133.32,50.0]
[1725291504267,7.4983,133.37,133.32,57.5002]
[1725291504665,15.5637,133.41,133.35,50.0]
[1725291504876,7.4962,133.4,133.36,1.499297]
[1725291505884,6.4171,133.42,133.37,51.49930118]
[1725291506064,38.11536019,133.44,133.39,50.0]
[1725291506256,38.11536019,133.44,133.39,57.4967]
[1725291506457,6.5365,133.45,133.41,57.4954]
[1725291506770,6.5365,133.45,133.4,18.7399]
[1725291506771,7.4944,133.44,133.4,18.7399]
[1725291507189,7.4944,133.44,133.4,76.236]
[1725291508566,38.11536019,133.46,133.41,7.4956]
[1725291509096,38.11536019,133.46,133.4,76.2359]
[1725291510094,38.11536019,133.44,133.38,50.0]
[1725291510258,7.4954,133.42,133.38,50.0]
[1725291510667,38.11536019,133.42,133.37,18.7437]
[1725291510861,7.4962,133.4,133.37,18.7437]
[1725291511189,7.4958,133.41,133.37,18.7437]
[1725291511397,7.4963,133.4,133.36,57.498]
[1725291511599,7.4963,133.4,133.36,50.0]
[1725291512788,7.4974,133.38,133.34,76.2474]
[1725291513797,7.4969,133.39,133.35,7.4989]
[1725291514094,7.4973,133.38,133.34,76.2474]
[1725291515171,7.497,133.39,133.34,76.2474]
[1725291515383,7.4978,133.38,133.34,26.2474]
[1725291515589,38.24085019,133.4,133.34,18.748]
[1725291515770,7.498,133.37,133.34,18.748]
[1725291515969,7.4985,133.36,133.32,57.5005]
[1725291516595,7.4985,133.36,133.33,1.49978824]
[1725291516966,7.4985,133.36,133.32,57.5005]
[1725291520397,7.498,133.37,133.33,8.9996785]
[1725291520591,7.498,133.37,133.33,7.4999]
[1725291521994,7.4975,133.38,133.34,7.4995]
[1725291522499,7.4969,133.39,133.35,7.4989]
[1725291522799,7.4969,133.39,133.35,8.99837593]
[1725291524891,7.4969,133.39,133.35,7.4989]
[1725291525093,45.61166019,133.4,133.36,7.4982]
[1725291525285,45.61166019,133.4,133.36,57.4982]
[1725291525797,51.93546019,133.42,133.38,7.497]
[1725291526107,7.494,133.44,133.4,7.4957]
[1725291526403,7.494,133.44,133.4,8.99464449]
[1725291526585,7.4945,133.43,133.39,26.2382]
[1725291526984,7.4946,133.43,133.39,26.2383]
[1725291527200,38.11536019,133.45,133.4,50.0]
[1725291527500,7.4944,133.44,133.4,7.4961]
[1725291528690,38.11536019,133.47,133.42,50.0]
[1725291529035,22.8585284,133.5,133.45,18.7331]
[1725291529306,7.4923,133.47,133.42,76.2316]
[1725291529604,45.60766019,133.47,133.42,76.2316]
[1725291531303,7.4928,133.46,133.42,26.2316]
[1725291535015,45.60776019,133.47,133.42,26.2316]
[1725291536210,45.60776019,133.47,133.43,8.99318787]
[1725291536409,45.60776019,133.47,133.43,7.4945]
[1725291537312,38.11536019,133.47,133.42,18.737]
[1725291537529,7.4943,133.44,133.4,50.0]
[1725291537816,7.4948,133.43,133.4,50.0]
[1725291538013,38.11536019,133.45,133.39,26.2381]
[1725291538396,0.12549,133.44,133.39,26.2381]
[1725291538796,0.12549,133.44,133.39,18.7414]
[1725291539041,38.11536019,133.45,133.39,18.7414]
[1725291539221,45.60906019,133.45,133.4,50.0]
[1725291539513,38.11536019,133.45,133.41,18.7386]
[1725291539698,38.11536019,133.45,133.42,7.4949]
[1725291540095,38.11536019,133.45,133.41,18.7386]
[1725291540096,45.60876019,133.45,133.41,26.234]
[1725291541409,38.11536019,133.45,133.41,18.7386]
[1725291541593,7.4921,133.48,133.44,57.494]
[1725291541999,38.11536019,133.49,133.44,50.0]
[1725291542196,38.11536019,133.49,133.38,50.0]
[1725291542197,38.11536019,133.47,133.38,50.0]
[1725291542416,38.11536019,133.45,133.38,50.0]
[1725291542916,7.4947,133.43,133.38,50.0]
[1725291543625,7.4947,133.43,133.39,7.4964]
[1725291544912,7.4941,133.44,133.4,7.4957]
[1725291545206,7.4946,133.43,133.39,76.2376]
[1725291546400,7.4952,133.42,133.39,50.0]
[1725291547621,7.4953,133.42,133.39,50.0]
[1725291548804,7.4953,133.42,133.36,18.7453]
[1725291548805,38.11536019,133.41,133.36,68.7453]
[1725291549121,38.11536019,133.41,133.36,18.7453]
[1725291549122,7.497,133.39,133.36,18.7453]
[1725291549325,7.4963,133.4,133.36,76.2437]
[1725291549708,45.61116019,133.41,133.37,7.4979]
[1725291550628,7.4962,133.4,133.36,76.2436]
[1725291551546,7.4968,133.39,133.36,18.7453]
[1725291552123,0.12549,133.4,133.32,50.0]
[1725291552330,0.12549,133.4,133.32,57.5005]
[1725291552331,7.4988,133.36,133.32,57.5005]
[1725291552705,7.4991,133.35,133.32,50.0]
[1725291552904,7.5001,133.33,133.3,66.5611]
[1725291553110,7.4998,133.34,133.3,74.0629]
[1725291553822,0.12549,133.36,133.3,74.0629]
[1725291554038,7.5,133.34,133.3,57.5018]
[1725291555616,38.11536019,133.37,133.32,50.0]
[1725291555812,45.61226019,133.39,133.34,57.4992]
[1725291556017,45.61226019,133.39,133.35,1.49953831]
[1725291556515,60.94896019,133.41,133.35,18.7472]
[1725291556714,7.4967,133.4,133.35,26.2461]
[1725291556909,7.4968,133.39,133.35,26.2461]
[1725291557110,7.4963,133.4,133.36,57.4983]
[1725291557522,7.4963,133.4,133.36,7.4983]
[1725291558018,7.4976,133.38,133.35,18.7472]
[1725291559138,60.94896019,133.41,133.36,50.0]
[1725291559139,7.4963,133.4,133.36,50.0]
[1725291559515,7.4963,133.4,133.36,57.4981]
[1725291560946,7.497,133.39,133.35,26.2462]
[1725291561234,7.4964,133.4,133.36,57.4984]
[1725291562333,38.11536019,133.41,133.36,57.4984]
[1725291562334,7.4968,133.39,133.36,57.4984]
[1725291562512,7.4968,133.39,133.35,26.246]
[1725291562713,7.4975,133.38,133.35,18.7472]
[1725291562906,7.4975,133.38,133.34,57.4994]
[1725291563115,7.498,133.37,133.33,23.3626]
[1725291563421,7.498,133.37,133.33,7.4999]
[1725291563828,7.4985,133.36,133.32,76.2511]
[1725291564344,0.12549,133.38,133.32,76.2511]
[1725291564345,7.4992,133.35,133.32,18.7506]
[1725291564514,7.4992,133.35,133.31,7.5011]
[1725291565021,7.5003,133.33,133.3,71.2199]
[1725291565242,7.4997,133.34,133.31,7.5012]
[1725291565418,7.4992,133.35,133.32,1.49991167]
[1725291565826,7.4986,133.36,133.33,50.0]
[1725291567026,38.11536019,133.39,133.33,50.0]
[1725291567230,45.61256019,133.39,133.35,7.4985]
[1725291567539,45.61256019,133.39,133.35,26.246]
[1725291568532,7.4973,133.38,133.35,26.246]
[1725291568737,7.4969,133.39,133.36,7.4984]
[1725291569132,7.4969,133.39,133.35,27.74578768]
[1725291569422,7.4969,133.39,133.35,26.2463]
[1725291570827,38.11536019,133.41,133.36,1.49948122]
[1725291571451,38.11536019,133.41,133.37,26.2419]
[1725291571632,45.61106019,133.41,133.38,1.4992832]
[1725291572226,45.61106019,133.41,133.37,27.7412151]
[1725291575550,45.61106019,133.41,133.38,7.4972]
[1725291575551,38.11536019,133.41,133.38,7.4972]
[1725291575731,7.4952,133.42,133.38,8.99646749]
[1725291576532,7.4952,133.42,133.38,7.4972]
[1725291576734,7.4957,133.41,133.37,26.2424]
[1725291576935,7.4952,133.42,133.38,8.99632698]
[1725291577241,7.4952,133.42,133.38,7.497]
[1725291578038,45.60996019,133.43,133.39,7.4967]
[1725291579634,45.60996019,133.43,133.39,57.4967]
[1725291580034,15.14550682,133.42,133.39,57.4967]
[1725291581830,7.4939,133.45,133.41,7.4955]
[1725291582030,7.4924,133.47,133.43,7.4945]
[1725291582245,15.14550682,133.47,133.44,7.4938]
[1725291582445,15.14550682,133.47,133.43,68.7359]
[1725291582651,15.14550682,133.47,133.44,7.494]
[1725291582830,22.63780682,133.47,133.43,76.2302]
[1725291584041,7.4923,133.47,133.43,76.2302]
[1725291589543,7.4929,133.46,133.43,18.7359]
[1725291590273,7.4935,133.45,133.41,23.6824]
[1725291590560,7.4935,133.45,133.41,7.4954]
[1725291591737,45.33042308,133.46,133.42,7.4951]
[1725291594045,7.4937,133.45,133.41,7.4955]
[1725291594752,7.4947,133.43,133.4,18.7397]
[1725291594962,7.4942,133.44,133.4,26.2357]
[1725291596054,45.45581308,133.46,133.42,26.2323]
[1725291596250,45.33032308,133.46,133.42,26.2323]
[1725291596455,7.4929,133.46,133.42,26.2323]
[1725291596666,35.3195,133.51,133.43,51.49873573]
[1725291596968,7.4912,133.49,133.45,7.4933]
[1725291597157,7.4918,133.48,133.44,26.2284]
[1725291597664,7.4913,133.49,133.44,26.2284]
[1725291599075,46.31494148,133.5,133.45,50.0]
[1725291599271,8.3520284,133.5,133.46,7.4924]
[1725291600868,7.4928,133.46,133.43,50.0]
[1725291601171,37.83742308,133.48,133.42,7.4947]
[1725291601367,7.4924,133.47,133.42,7.4947]
[1725291601584,7.4924,133.47,133.43,7.4943]
[1725291601866,7.4934,133.46,133.41,98.2333]
[1725291602073,7.4925,133.47,133.42,7.4946]
[1725291602258,7.4925,133.47,133.41,90.7379]
[1725291602259,7.4925,133.47,133.43,7.4944]
[1725291603263,45.32932308,133.48,133.44,7.4939]
[1725291603863,7.61679,133.49,133.45,7.4933]
[1725291605475,0.8612284,133.5,133.47,7.4921]
[1725291605776,8.3518284,133.5,133.46,7.4926]
[1725291606677,8.3518284,133.5,133.47,18.7302]
[1725291606968,0.8612284,133.5,133.47,26.2223]
[1725291608183,0.8612284,133.5,133.47,68.7302]
[1725291608400,0.8612284,133.5,133.48,7.4916]
[1725291609891,0.8612284,133.5,133.49,7.4911]
[1725291610263,0.8612284,133.5,133.49,57.4911]
[1725291610468,0.8612284,133.5,133.49,7.4911]
[1725291610989,0.8612284,133.5,133.48,7.4916]
[1725291611188,0.8612284,133.5,133.47,42.7224]
[1725291611392,0.8612284,133.5,133.47,26.2223]
[1725291612791,0.8612284,133.5,133.48,7.4914]
[1725291613994,15.98795549,133.5,133.44,68.7337]
[1725291614295,23.47885549,133.5,133.46,7.4927]
[1725291615069,0.8612284,133.5,133.47,50.0]
[1725291615271,0.8612284,133.5,133.49,57.4911]
[1725291615973,0.8612284,133.5,133.48,26.2195]
[1725291616176,0.8612284,133.5,133.45,18.7325]
[1725291616494,0.8612284,133.5,133.46,7.4927]
[1725291616705,0.8612284,133.5,133.47,68.7304]
[1725291617000,0.8612284,133.5,133.47,26.2223]
[1725291617370,0.8612284,133.5,133.48,7.4916]
[1725291618101,0.8612284,133.5,133.47,76.2223]
[1725291618994,0.8612284,133.5,133.47,26.2223]
[1725291619386,23.47855549,133.5,133.46,7.4927]
[1725291619598,23.47855549,133.5,133.44,18.7342]
[1725291619599,15.98795549,133.5,133.44,18.7342]
[1725291619910,23.47865549,133.5,133.46,7.4927]
[1725291622481,15.12672709,133.48,133.44,18.7342]
[1725291622793,15.12672709,133.46,133.41,50.0]
[1725291622996,15.12672709,133.44,133.41,50.0]
[1725291623386,22.706,133.51,133.46,26.2249]